lending/lending_fUSD_20250424
["ID","MTS","AMOUNT","RATE_DAILY","PERIOD"]
[358867473,1745496650060,-563.74849797,0.00041095,30]
[358867474,1745496650070,-395.32601666,0.00041095,2]
[358867475,1745496650080,-500.0,0.00041095,30]
[358867476,1745496650091,-500.0,0.00041095,30]
[358867477,1745496650102,-500.0,0.00041095,30]
[358867478,1745496650112,-500.0,0.00041095,30]
[358867479,1745496650122,-500.0,0.00041095,30]
[358867480,1745496650135,-500.0,0.00041095,30]
[358867481,1745496650146,-500.0,0.00041095,30]
[358867482,1745496650156,-500.0,0.00041095,30]
[358867483,1745496650166,-500.0,0.00041095,30]
[358867484,1745496650176,-500.0,0.00041095,30]
[358867485,1745496650186,-500.0,0.00041095,30]
[358867486,1745496650196,-500.0,0.00041095,30]
[358867487,1745496650206,-500.0,0.00041095,30]
[358867488,1745496650216,-500.0,0.00041095,30]
[358867489,1745496650226,-500.0,0.00041095,30]
[358867490,1745496650236,-500.0,0.00041095,30]
[358867491,1745496650246,-500.0,0.00041095,30]
[358867492,1745496650255,-500.0,0.00041095,30]
[358867493,1745496650265,-423.10090196,0.00041095,30]
[358867494,1745496650276,-500.0,0.00041095,2]
[358867495,1745496650286,-500.0,0.00041095,2]
[358867496,1745496650295,-500.0,0.00041095,30]
[358867497,1745496650305,-501.52768479,0.00041095,30]
[358867498,1745496650315,-500.00000001,0.00041095,30]
[358867499,1745496650324,-220.14,0.00041095,120]
[358867500,1745496650334,-500.0,0.00041095,30]
[358867501,1745496650343,-500.0,0.00041095,30]
[358867502,1745496650353,-500.00099541,0.00041095,30]
[358867503,1745496650363,-524.79,0.00041095,30]
[358867504,1745496650374,-524.79,0.00041095,30]
[358867505,1745496650384,-524.79,0.00041095,30]
[358867506,1745496650394,-524.79,0.00041095,30]
[358867507,1745496650404,-524.79,0.00041095,30]
[358867508,1745496650414,-524.79,0.00041095,30]
[358867509,1745496650424,-524.79,0.00041095,30]
[358867510,1745496650435,-524.79,0.00041095,30]
[358867511,1745496650444,-524.79,0.00041095,30]
[358867512,1745496650454,-524.79,0.00041095,30]
[358867513,1745496650465,-524.79,0.00041095,30]
[358867514,1745496650474,-524.79,0.00041095,30]
[358867515,1745496650484,-524.79,0.00041095,30]
[358867516,1745496650493,-524.79,0.00041095,30]
[358867517,1745496650504,-524.79,0.00041095,30]
[358867518,1745496650513,-524.79,0.00041095,30]
[358867519,1745496650523,-524.79,0.00041095,30]
[358867520,1745496650533,-524.79,0.00041095,30]
[358867521,1745496650543,-524.79,0.00041095,30]
[358867522,1745496650552,-524.79,0.00041095,30]
[358867523,1745496650562,-524.79,0.00041095,30]
[358867524,1745496650571,-524.79,0.00041095,30]
[358867525,1745496650581,-524.79,0.00041095,30]
[358867526,1745496650590,-524.93066801,0.00041095,30]
[358867527,1745496650601,-531.80863245,0.00041095,7]
[358867528,1745496650610,-999.0,0.00041095,2]
[358867529,1745496650620,-200.0,0.00041096,60]
[358867530,1745496650629,-500.0,0.00041096,10]
[358867531,1745496650639,-4000.0,0.00041096,60]
[358867532,1745496650648,-500.0,0.00041096,30]
[358867533,1745496650658,-438.0,0.00041096,30]
[358867534,1745496650668,-1000.0,0.000411,2]
[358867535,1745496650678,-501.86,0.000412,3]
[358867536,1745496650687,-300.0,0.000412,2]
[358867537,1745496650696,-275.8153,0.00041249,7]
[358867538,1745496650707,-497.40675267,0.00041369,2]
[358867539,1745496650721,-500.0,0.00041369,2]
[358867540,1745496650731,-3500.0,0.00041369,10]
[358867541,1745496650743,-500.0,0.00041369,2]
[358867542,1745496650753,-500.0,0.00041369,2]
[358867543,1745496650763,-999.0,0.00041369,2]
[358867544,1745496650773,-625.0,0.0004137,90]
[358867545,1745496650783,-150.0,0.00041528,2]
[358867546,1745496650793,-25841.21,0.000416,60]
[358867547,1745496650805,-5315.27,0.000416,14]
[358867548,1745496650816,-151.0,0.000416,14]
[358867549,1745496650826,-294.049152,0.000416,14]
[358867550,1745496650836,-151.0,0.000416,14]
[358867551,1745496650846,-151.0,0.000416,14]
[358867552,1745496650856,-151.0,0.000416,14]
[358867553,1745496650866,-300.0,0.000416,2]
[358867554,1745496650876,-918.0,0.0004162,2]
[358867555,1745496650886,-796.0,0.0004162,2]
[358867556,1745496650896,-1445.0,0.0004162,2]
[358867557,1745496650906,-578.0,0.0004162,2]
[358867558,1745496650916,-548.0,0.0004162,2]
[358867559,1745496650926,-910.0,0.0004162,2]
[358867560,1745496650937,-2060.0,0.0004162,2]
[358867561,1745496650947,-500.0,0.00041643,2]
[358867562,1745496650957,-3500.0,0.00041643,10]
[358867563,1745496650967,-500.0,0.00041643,2]
[358867564,1745496650977,-500.0,0.00041643,2]
[358867565,1745496650986,-999.0,0.00041643,2]
[358867566,1745496650995,-988.42771834,0.00041644,10]
[358867567,1745496651004,-625.0,0.00041644,90]
[358867568,1745496651014,-501.86,0.000417,3]
[358867569,1745496651024,-370.91026638,0.00041892,2]
[358867570,1745496651033,-500.0,0.00041917,2]
[358867571,1745496651043,-3500.0,0.00041917,10]
[358867572,1745496651055,-152.18159071,0.00041917,2]
[358867573,1745496651066,-500.0,0.00041917,2]
[358867574,1745496651078,-151.0,0.00041917,14]
[358867575,1745496651088,-999.0,0.00041917,2]
[358867576,1745496651097,-625.0,0.00041918,90]
[358867577,1745496651108,-201.85,0.00041926,2]
[358867578,1745496651118,-76219.03641845,0.00042,2]
[358867579,1745496651128,-3107.34520093,0.00042,2]
[358867580,1745496651139,-200.0,0.00042,67]
[358867581,1745496651149,-151.0,0.00042,14]
[358867582,1745496651159,-151.0,0.00042,14]
[358867583,1745496651174,-200.0,0.00042,67]
[358867584,1745496651185,-283.929703,0.00042,14]
[358867585,1745496651195,-283.929703,0.00042,14]
[358867586,1745496651205,-213.0,0.00042,2]
[358867587,1745496651216,-450.0,0.00042,4]
[358867588,1745496651226,-1338.54020287,0.0004201,2]
[358867589,1745496651236,-500.0,0.00042191,2]
[358867590,1745496651246,-3500.0,0.00042191,10]
[358867591,1745496651256,-434.92032737,0.00042191,2]
[358867592,1745496651267,-500.0,0.00042191,120]
[358867593,1745496651277,-500.0,0.00042191,120]
[358867594,1745496651287,-500.0,0.00042191,120]
[358867595,1745496651296,-500.0,0.00042191,120]
[358867596,1745496651306,-500.0,0.00042191,120]
[358867597,1745496651316,-500.0,0.00042191,120]
[358867598,1745496651326,-500.0,0.00042191,120]
[358867599,1745496651336,-500.0,0.00042191,120]
[358867600,1745496651346,-500.0,0.00042191,120]
[358867601,1745496651356,-500.0,0.00042191,120]
[358867602,1745496651366,-500.0,0.00042191,120]
[358867603,1745496651376,-500.0,0.00042191,120]
[358867604,1745496651386,-500.0,0.00042191,120]
[358867605,1745496651396,-500.0,0.00042191,120]
[358867606,1745496651406,-500.0,0.00042191,120]
[358867607,1745496651416,-500.0,0.00042191,120]
[358867608,1745496651427,-500.0,0.00042191,120]
[358867609,1745496651437,-500.0,0.00042191,120]
[358867610,1745496651447,-500.0,0.00042191,120]
[358867611,1745496651456,-500.0,0.00042191,120]
[358867612,1745496651466,-500.0,0.00042191,120]
[358867613,1745496651477,-500.0,0.00042191,120]
[358867614,1745496651487,-500.0,0.00042191,120]
[358867615,1745496651497,-500.0,0.00042191,120]
[358867616,1745496651507,-500.0,0.00042191,120]
[358867617,1745496651517,-500.0,0.00042191,120]
[358867618,1745496651526,-500.0,0.00042191,120]
[358867619,1745496651536,-500.0,0.00042191,120]
[358867620,1745496651546,-500.0,0.00042191,120]
[358867621,1745496651557,-500.0,0.00042191,120]
[358867622,1745496651567,-500.0,0.00042191,120]
[358867623,1745496651576,-500.0,0.00042191,120]
[358867624,1745496651586,-500.0,0.00042191,120]
[358867625,1745496651596,-500.0,0.00042191,120]
[358867626,1745496651607,-500.0,0.00042191,120]
[358867627,1745496651629,-500.0,0.00042191,120]
[358867628,1745496651642,-500.0,0.00042191,120]
[358867629,1745496651652,-500.0,0.00042191,120]
[358867630,1745496651662,-500.0,0.00042191,120]
[358867631,1745496651672,-500.0,0.00042191,120]
[358867632,1745496651682,-500.0,0.00042191,120]
[358867633,1745496651692,-500.0,0.00042191,120]
[358867634,1745496651702,-500.0,0.00042191,120]
[358867635,1745496651712,-799.0,0.00042191,120]
[358867636,1745496651721,-999.0,0.00042191,2]
[358867637,1745496651731,-625.0,0.00042192,90]
[358867638,1745496651740,-501.86,0.000422,3]
[358867639,1745496651750,-150.0,0.00042394,2]
[358867640,1745496651759,-450.0,0.000424,4]
[358867641,1745496651769,-500.0,0.00042465,2]
[358867642,1745496651779,-3500.0,0.00042465,10]
[358867643,1745496651790,-151.0,0.00042465,14]
[358867644,1745496651800,-151.0,0.00042465,14]
[358867645,1745496651811,-220.14,0.00042465,120]
[358867646,1745496651822,-999.0,0.00042465,2]
[358867647,1745496651832,-210.0,0.00042466,60]
[358867648,1745496651842,-625.0,0.00042466,90]
[358867649,1745496651852,-1000.0,0.00042466,14]
[358867650,1745496651862,-14583.86104134,0.000425,30]
[358867651,1745496651872,-501.86,0.000426,3]
[358867652,1745496651882,-1000.0,0.00042603,14]
[358867653,1745496651891,-685.77517307,0.00042712,10]
[358867654,1745496651901,-500.0,0.00042739,2]
[358867655,1745496651911,-3500.0,0.00042739,10]
[358867656,1745496651921,-151.0,0.00042739,14]
[358867657,1745496651931,-151.0,0.00042739,14]
[358867658,1745496651941,-999.0,0.00042739,2]
[358867659,1745496651951,-1000.0,0.0004274,14]
[358867660,1745496651963,-450.0,0.000428,4]
[358867661,1745496651973,-874.28,0.00042862,2]
[358867662,1745496651982,-1000.0,0.00042877,14]
[358867663,1745496651992,-5000.0,0.0004288,2]
[358867664,1745496652002,-226.201285,0.0004288,14]
[358867665,1745496652011,-226.201285,0.0004288,14]
[358867666,1745496652021,-151.0,0.0004288,14]
[358867667,1745496652031,-151.0,0.0004288,14]
[358867668,1745496652041,-151.0,0.0004288,14]
[358867669,1745496652052,-151.0,0.0004288,14]
[358867670,1745496652067,-67992.14840119,0.00042993,2]
[358867671,1745496652078,-151.0,0.00042993,14]
[358867672,1745496652088,-151.0,0.00042993,14]
[358867673,1745496652099,-238.620178,0.00042993,14]
[358867674,1745496652110,-151.0,0.00042993,14]
[358867675,1745496652120,-151.0,0.00042993,14]
[358867676,1745496652132,-519.730923,0.00042993,14]
[358867677,1745496652143,-151.0,0.00042993,14]
[358867678,1745496652153,-519.730923,0.00042993,14]
[358867679,1745496652163,-151.0,0.00042993,14]
[358867680,1745496652173,-151.0,0.00042993,14]
[358867681,1745496652184,-151.0,0.00042993,14]
[358867682,1745496652194,-151.0,0.00042993,14]
[358867683,1745496652204,-25841.21,0.00043,60]
[358867684,1745496652214,-5315.27,0.00043,14]
[358867685,1745496652225,-115469.44558563,0.00043,2]
[358867686,1745496652904,-301.84,0.00043,2]
[358867687,1745496652941,-2787.65813216,0.00043,2]
[358867688,1745496653344,-870.925588,0.0002,2]
[358867689,1745496653355,-228.52607558,0.00043,2]
[358867690,1745496653381,-913.44,0.00043,2]
[358867691,1745496653398,-4836.0,0.00043,2]
[358867692,1745496653412,-5815.3,0.00043,2]
[358867693,1745496653426,-11706.8180064,0.00043,2]
[358867694,1745496653439,-27183.85220033,0.00043,2]
[358867695,1745496653456,-5265.3587318,0.00043,2]
[358867696,1745496653546,-299.99,0.0002489,7]
[358867697,1745496653556,-526.01000001,0.00043,2]
[358867698,1745496656345,10000.0,0.00037808,60]
[358867699,1745496675038,10000.0,0.00030137,120]
[358867702,1745496916832,1600.0,0.0003644,120]
[358867703,1745497017592,1500.0,0.00036675,120]
[358867704,1745497046128,219409.56920578,0.00037,60]
[358867705,1745497113279,17988.22,0.00030137,120]
[358867706,1745497294665,4980.56,0.00037808,60]
[358867707,1745497308199,-600.0,0.00019509,2]
[358867708,1745497308226,-150.0,0.00019676,2]
[358867709,1745497308251,-150.0,0.00019816,2]
[358867710,1745497308277,-169.737325,0.00019843,2]
[358867711,1745497308303,-774.3907,0.00019886,2]
[358867712,1745497308338,-189.57488143,0.00019899,2]
[358867713,1745497308368,-1200.0,0.00019999,2]
[358867714,1745497308396,-300.0,0.00019999,2]
[358867715,1745497308425,-300.0,0.00019999,2]
[358867716,1745497308458,-500.0,0.0002,2]
[358867717,1745497308490,-500.0,0.0002,2]
[358867718,1745497308520,-500.0,0.0002,2]
[358867719,1745497308552,-500.0,0.0002,2]
[358867720,1745497308581,-500.0,0.0002,2]
[358867721,1745497308610,-500.0,0.0002,2]
[358867722,1745497308640,-500.0,0.0002,2]
[358867723,1745497308669,-500.0,0.0002,2]
[358867724,1745497308699,-500.0,0.0002,2]
[358867725,1745497308730,-500.0,0.0002,2]
[358867726,1745497308760,-500.0,0.0002,2]
[358867727,1745497308791,-500.0,0.0002,2]
[358867728,1745497308821,-500.0,0.0002,2]
[358867729,1745497308851,-500.0,0.0002,2]
[358867730,1745497308888,-500.0,0.0002,2]
[358867731,1745497308918,-214.25740463,0.0002,2]
[358867732,1745497308948,-500.0,0.0002,2]
[358867733,1745497308979,-500.0,0.0002,2]
[358867734,1745497309010,-500.0,0.0002,2]
[358867735,1745497309043,-500.0,0.0002,2]
[358867736,1745497309074,-500.0,0.0002,2]
[358867737,1745497309491,-500.0,0.0002,2]
[358867738,1745497309523,-500.0,0.0002,2]
[358867739,1745497309556,-500.0,0.0002,2]
[358867740,1745497309586,-500.0,0.0002,2]
[358867741,1745497309616,-500.0,0.0002,2]
[358867742,1745497309645,-500.0,0.0002,2]
[358867743,1745497309673,-500.0,0.0002,2]
[358867744,1745497309702,-500.0,0.0002,2]
[358867747,1745497381844,1126.5,0.00030137,120]
[358867748,1745497443411,250.0,0.00017,2]
[358867749,1745497443891,300.0,0.00019,2]
[358867750,1745497508016,3416.29709357,0.0002,2]
[358867751,1745497510414,611.89638895,0.000154,2]
[358867752,1745497527603,428.83784625,0.00023,120]
[358867753,1745497527888,1561.66521111,0.00011,2]
[358867754,1745497531844,307.28212334,0.0002,120]
[358867755,1745497553905,6213.81746805,0.00015,10]
[358867756,1745497553930,8798.18253195,0.00015,10]
[358867757,1745497568735,4582.46870047,0.000199,3]
[358867772,1745497629889,151.14935105,0.00021,120]
[358867773,1745497631108,696.87068944,0.0002301,120]
[358867774,1745497631946,1000.0,0.000378,60]
[358867775,1745497641808,-473.46407146,0.000199,2]
[358867776,1745497641832,-505.95711111,0.000199,2]
[358867777,1745497641858,-500.0,0.00019999,2]
[358867778,1745497641882,-226.615158,0.00019999,2]
[358867779,1745497641907,-325.82432923,0.00019999,2]
[358867780,1745497641932,-500.0,0.00019999,2]
[358867781,1745497641957,-500.0,0.00019999,2]
[358867782,1745497641980,-300.0,0.00019999,2]
[358867783,1745497642002,-500.0,0.00019999,2]
[358867784,1745497642026,-670.87075064,0.00019999,2]
[358867785,1745497642051,-121504.26857956,0.0002,2]
[358867786,1745497646688,-100000.0,0.0002,2]
[358867787,1745497648580,472.27670964,0.00035,120]
[358867788,1745497668244,775.74726122,0.0003,120]
[358867789,1745497673361,1005.6,0.000378,60]
[358867790,1745497673915,2020.0,0.0002,120]
[358867791,1745497677550,67487.68079519,0.0002,4]
[358867792,1745497679151,1114.8113587,0.00015,10]
[358867794,1745497692345,169.04690163,0.00027,120]
[358867807,1745497710292,6031.24438131,0.00037808,60]
[358867808,1745497713425,188.17350405,0.00028799,120]
[358867809,1745497714928,294.80870494,0.0003,60]
[358867810,1745497715925,988.17919297,0.00032,120]
[358867811,1745497720834,467.35105188,0.000145,120]
[358867812,1745497722271,198.50998917,0.00028,60]
[358867817,1745497726813,2149.0,0.00037808,60]
[358867820,1745497830915,299.99,0.0002,7]
[358867827,1745497831571,-0.77803729,0.00019875,2]
[358867828,1745497831657,-5799.22196271,0.00019875,2]
[358867829,1745497831667,-5800.0,0.00019883,2]
[358867830,1745497831677,-1200.0,0.00019891,2]
[358867831,1745497831686,-300.0,0.00019891,2]
[358867832,1745497831697,-4347.10581208,0.00019892,2]
[358867867,1745497837567,-1452.89418792,0.00019892,2]
[358867868,1745497837577,-5800.0,0.000199,2]
[358867869,1745497837587,-484.38547257,0.00019973,2]
[358867870,1745497837598,-500.0,0.00019973,2]
[358867871,1745497837608,-500.0,0.00019973,2]
[358867872,1745497837617,-16114.42475177,0.0001999,2]
[358867873,1745497837627,-16114.42475177,0.0001999,2]
[358867874,1745497837637,-16114.42475177,0.0001999,2]
[358867875,1745497837647,-16114.42475177,0.0001999,2]
[358867876,1745497837658,-16114.42475177,0.0001999,2]
[358867877,1745497837668,-16114.42475177,0.0001999,2]
[358867878,1745497837678,-16114.42475177,0.0001999,2]
[358867879,1745497837687,-16114.42475177,0.0001999,2]
[358867880,1745497837696,-1217.4295604,0.0001999,2]
[358867881,1745497837706,-1217.4295604,0.0001999,2]
[358867882,1745497837715,-1217.4295604,0.0001999,2]
[358867883,1745497837726,-300.0,0.00019999,2]
[358867884,1745497837735,-500.0,0.00019999,2]
[358867885,1745497837745,-500.0,0.00019999,2]
[358867886,1745497837756,-500.0,0.00019999,2]
[358867887,1745497837765,-150.0,0.00019999,2]
[358867888,1745497837777,-150.0,0.00019999,2]
[358867889,1745497837787,-150.0,0.00019999,2]
[358867890,1745497837796,-150.0,0.00019999,2]
[358867891,1745497837806,-150.0,0.00019999,2]
[358867892,1745497837815,-150.0,0.00019999,2]
[358867893,1745497837826,-150.0,0.00019999,2]
[358867894,1745497837836,-150.0,0.00019999,2]
[358867895,1745497837846,-150.0,0.00019999,2]
[358867896,1745497837857,-150.0,0.00019999,2]
[358867897,1745497837867,-150.0,0.00019999,2]
[358867898,1745497837876,-150.0,0.00019999,2]
[358867899,1745497837886,-150.0,0.00019999,2]
[358867900,1745497837895,-150.0,0.00019999,2]
[358867901,1745497837905,-150.0,0.00019999,2]
[358867902,1745497837916,-150.0,0.00019999,2]
[358867903,1745497837926,-150.0,0.00019999,2]
[358867904,1745497837936,-150.0,0.00019999,2]
[358867906,1745497837946,-150.0,0.00019999,2]
[358867908,1745497837955,-150.0,0.00019999,2]
[358867910,1745497837965,-150.0,0.00019999,2]
[358867912,1745497837975,-150.0,0.00019999,2]
[358867914,1745497837984,-150.0,0.00019999,2]
[358867916,1745497837994,-150.0,0.00019999,2]
[358867918,1745497838004,-150.0,0.00019999,2]
[358867920,1745497838014,-799499.75196231,0.0002,2]
[358867922,1745497838023,-213.31021645,0.0002,2]
[358867924,1745497838032,-150.0,0.0002,2]
[358867926,1745497838041,-250.0,0.0002,2]
[358867928,1745497838051,-937844.87877246,0.0002,2]
[358867930,1745497838062,-2494318.525,0.0002,2]
[358868144,1745497840266,-6728.28061611,0.0002,2]
[358868148,1745497840300,-5043913.9671287,0.0002,2]
[358868153,1745497840333,-473.79498128,0.0002,2]
[358868157,1745497840367,-1959.17197753,0.0002,2]
[358868392,1745497842763,-1062.32831926,0.00019866,2]
[358868407,1745497842926,-4737.67168074,0.00019866,2]
[358868409,1745497842936,-4154.35588996,0.000199,2]
[358868410,1745497842947,-9453.66364951,0.0002,2]
[358868417,1745497845492,-925.217,0.0001999,2]
[358868418,1745497845504,-7456.69901533,0.0001999,2]
[358868419,1745497845516,-2551.88636208,0.0001999,2]
[358868420,1745497845527,-63314.57790392,0.0002,2]
[358868426,1745497846492,-1011.06169608,0.0002,2]
[358868427,1745497878892,500.0,0.00037808,60]
[358868429,1745497941809,1500.0,0.000378,60]
[358868430,1745497988051,182.0596015,0.000372,120]
[358868432,1745498008344,164.66,0.00027217,120]
[358868433,1745498008556,164.66,0.0003266,120]
[358868436,1745498032314,2508.73783,0.000378,60]
[358868437,1745498213176,1500.0,0.00032877,120]
[358868439,1745498627144,869.99,0.00017715,2]
[358868440,1745498667917,1188.94621395,0.0003763,120]
[358868441,1745498800404,150.0,0.00019187,7]
[358868442,1745498826707,180.0,0.00037808,60]
[358868445,1745498852037,322.66641483,0.000372,120]
[358868446,1745498858108,322.66641482,0.000372,120]
[358868447,1745498862056,322.66641482,0.000372,120]
[358868448,1745498867069,322.66641482,0.000372,120]
[358868449,1745498872047,322.66641482,0.000372,120]
[358868450,1745498893427,1766.13153368,0.00037808,120]
[358868451,1745498907872,487.78070694,0.00037808,60]
[358868452,1745498914588,270.31,0.00037808,60]
[358868459,1745498935813,1500.0,0.000378,60]
[358868460,1745498946406,500.0,0.00032876,120]
[358868461,1745498946656,500.0,0.00032876,120]
[358868462,1745498946886,500.0,0.00032876,120]
[358868463,1745498947146,500.0,0.00032876,120]
[358868464,1745498947392,500.0,0.00032876,120]
[358868465,1745498947627,500.0,0.00032876,120]
[358868466,1745498948054,500.0,0.00032876,120]
[358868467,1745498948281,500.0,0.00032876,120]
[358868468,1745498948524,270.31,0.00019101,2]
[358868469,1745498948557,500.0,0.00032876,120]
[358868470,1745498948775,566.80863345,0.00032876,120]
[358868473,1745498995139,996.0,0.00037808,60]
[358868474,1745498996531,2271.6450207,0.00037808,60]
[358868475,1745499005386,349.7352791,0.00037808,60]
[358868476,1745499007663,1532.6,0.000378,60]
[358868482,1745499031627,-418.20677119,0.00019218,2]
[358868483,1745499031894,-166.92322881,0.00019218,2]
[358868484,1745499031905,-150.0,0.00019237,2]
[358868485,1745499031915,-30.35829495,0.00019256,2]
[358868486,1745499031926,-261.82499994,0.00019256,2]
[358868487,1745499031937,-538.54954752,0.00019256,2]
[358868531,1745499037632,-2169.26715759,0.00019256,2]
[358868533,1745499037642,-150.0,0.00019345,2]
[358868535,1745499037653,-200.25696919,0.00019435,2]
[358868537,1745499037663,-200.0,0.00019535,2]
[358868539,1745499037673,-2446.04,0.00019552,2]
[358868542,1745499037683,-332.92871095,0.000197,2]
[358868544,1745499037694,-366.09805812,0.000197,2]
[358868546,1745499037704,-1200.0,0.00019706,2]
[358868548,1745499037714,-300.0,0.00019794,2]
[358868550,1745499037724,-150.99,0.00019794,2]
[358868552,1745499037735,-1000.0,0.00019795,2]
[358868554,1745499037745,-300.0,0.00019857,2]
[358868556,1745499037755,-5800.0,0.00019858,2]
[358868558,1745499037766,-1356.3601,0.00019899,2]
[358868560,1745499037776,-4410.8357485,0.00019899,2]
[358868562,1745499037786,-3473.3566,0.000199,2]
[358868564,1745499037796,-2339.8066,0.000199,2]
[358868565,1745499037808,-185.905,0.000199,2]
[358868566,1745499037819,-2130.128,0.000199,2]
[358868567,1745499037829,-424.10448981,0.000199,2]
[358868568,1745499037838,-41586.46259249,0.000199,2]
[358868569,1745499037850,-177.35948658,0.000199,2]
[358868570,1745499037859,-366.99681186,0.00019973,2]
[358868571,1745499037869,-591.19722479,0.00019973,2]
[358868572,1745499037878,-869.99,0.00019978,2]
[358868573,1745499037889,-207.4,0.00019988,2]
[358868574,1745499037898,-151.0,0.00019988,2]
[358868575,1745499037908,-1217.4295604,0.0001999,2]
[358868576,1745499037917,-1217.4295604,0.0001999,2]
[358868577,1745499037927,-1217.4295604,0.0001999,2]
[358868578,1745499037936,-500.0,0.00019998,2]
[358868579,1745499037947,-158.6306106,0.00019998,2]
[358868580,1745499037959,-278.07703046,0.00019998,2]
[358868581,1745499037968,-500.0,0.00019998,2]
[358868582,1745499037979,-300.0,0.00019999,2]
[358868583,1745499037989,-300.0,0.00019999,2]
[358868584,1745499037999,-300.0,0.00019999,2]
[358868586,1745499038008,-300.0,0.00019999,2]
[358868588,1745499038018,-500.0,0.00019999,2]
[358868590,1745499038028,-500.0,0.00019999,2]
[358868592,1745499038038,-500.0,0.00019999,2]
[358868594,1745499038048,-666.0,0.00019999,2]
[358868596,1745499038057,-300.0,0.00019999,2]
[358868598,1745499038067,-500.0,0.00019999,2]
[358868600,1745499038076,-500.0,0.00019999,2]
[358868602,1745499038087,-500.0,0.00019999,2]
[358868604,1745499038096,-500.0,0.00019999,2]
[358868606,1745499038106,-500.0,0.00019999,2]
[358868608,1745499038115,-500.0,0.00019999,2]
[358868610,1745499038124,-82692.59602614,0.00019999,2]
[358868612,1745499038134,-150.0,0.00019999,2]
[358868614,1745499038144,-150.0,0.00019999,2]
[358868616,1745499038153,-150.0,0.00019999,2]
[358868618,1745499038162,-150.0,0.00019999,2]
[358868620,1745499038174,-150.0,0.00019999,2]
[358868622,1745499038183,-150.0,0.00019999,2]
[358868624,1745499038192,-150.0,0.00019999,2]
[358868626,1745499038201,-150.0,0.00019999,2]
[358868628,1745499038211,-150.0,0.00019999,2]
[358868630,1745499038220,-150.0,0.00019999,2]
[358868632,1745499038229,-150.0,0.00019999,2]
[358868635,1745499038241,-150.0,0.00019999,2]
[358868637,1745499038250,-849499.75196231,0.0002,2]
[358868639,1745499038259,-857441.79978599,0.0002,2]
[358868641,1745499038272,-2494318.525,0.0002,2]
[358868794,1745499039881,-213.31021645,0.0002,2]
[358868797,1745499039893,-22981.43978355,0.0002,2]
[358868807,1745499039938,-5126.69009862,0.0002,2]
[358868810,1745499039950,-5043913.9671287,0.0002,2]
[358868843,1745499040258,-5559.15063506,0.0002,2]
[358869041,1745499045670,-257.76960667,0.0001989,2]
[358869042,1745499045680,-204.89539333,0.0002,2]
[358869043,1745499045693,-164501.76606137,0.0002,2]
[358869044,1745499045702,-64477.81082081,0.0002,2]
[358869045,1745499045712,-171483.98017864,0.0002,2]
[358869062,1745499069922,1567.06,0.00027275,120]
[358869063,1745499070138,1567.06,0.00030003,120]
[358869064,1745499070341,1567.06,0.0003273,120]